fUST/lending_fUST_20260111
["ID","MTS","AMOUNT","RATE_DAILY","PERIOD"]
[401254834,1768078238895,-380.1,0.00019687,2]
[401254835,1768078238905,-454.65002405,0.00019845,4]
[401254836,1768078238916,-167.58,0.0002,2]
[401254837,1768078238927,-163.88,0.0002,2]
[401254838,1768078238937,-166.96,0.0002,2]
[401254839,1768078238948,-151.89012023,0.0002,2]
[401254840,1768078238959,-454.65002405,0.00020034,4]
[401254841,1768078238969,-646.83775496,0.00020198,2]
[401254842,1768078238978,-454.65002405,0.00020223,4]
[401254843,1768078238987,-160.0,0.00020343,2]
[401254844,1768078238996,-1041.66666667,0.00020343,2]
[401254845,1768078239006,-151.0,0.000204,3]
[401254846,1768078239015,-454.65002405,0.00020412,4]
[401254847,1768078239025,-1000.0,0.00020516,2]
[401254848,1768078239035,-492.0,0.00020516,2]
[401254849,1768078239044,-454.65002405,0.00020601,4]
[401254850,1768078239053,-380.1,0.0002143,2]
[401254851,1768078239063,-708.11712122,0.00022198,2]
[401254852,1768078239072,-151.0,0.000225,7]
[401254853,1768078239080,-1000.0,0.00022568,10]
[401254854,1768078239090,-791.0,0.00022568,10]
[401254855,1768078239100,-162.26,0.000226,2]
[401254856,1768078239109,-380.1,0.00023172,2]
[401254857,1768078239120,-769.39648748,0.00024198,2]
[401254858,1768078239130,-151.0,0.000246,5]
[401254859,1768078239140,-407.88214472,0.00024814,2]
[401254860,1768078239149,-1000.0,0.00024824,10]
[401254861,1768078239159,-1000.0,0.00024824,10]
[401254862,1768078239169,-337988.424197,0.000249,2]
[401254864,1768078239179,-380.1,0.00024914,2]
[401254866,1768078239188,-150.1,0.00025202,2]
[401254867,1768078239199,-250.0,0.00025205,2]
[401254868,1768078239208,-10523.09,0.000253,2]
[401254869,1768078239219,-500.0,0.0002548,2]
[401254870,1768078239228,-500.0,0.0002548,2]
[401254871,1768078239238,-250.0,0.00025617,2]
[401254872,1768078239247,-500.0,0.00025617,2]
[401254873,1768078239257,-500.0,0.00025617,2]
[401254874,1768078239267,-2338.09322302,0.00025698,2]
[401254875,1768078239276,-350.0,0.00025753,2]
[401254876,1768078239286,-153.05659276,0.00025754,2]
[401254877,1768078239296,-500.0,0.00025754,2]
[401254878,1768078239305,-500.0,0.00025754,2]
[401254879,1768078239316,-200.0,0.00025891,2]
[401254880,1768078239325,-500.0,0.00025891,2]
[401254881,1768078239336,-500.0,0.00025891,2]
[401254882,1768078239345,-285.4711241,0.00026027,19]
[401254883,1768078239355,-200.0,0.00026028,2]
[401254884,1768078239365,-500.0,0.00026028,2]
[401254885,1768078239375,-500.0,0.00026028,2]
[401254886,1768078239384,-5000.0,0.00026105,2]
[401254887,1768078239394,-200.0,0.00026165,2]
[401254888,1768078239404,-500.0,0.00026165,2]
[401254889,1768078239414,-250.0,0.00026165,2]
[401254890,1768078239423,-250.0,0.00026165,2]
[401254891,1768078239433,-500.0,0.00026165,2]
[401254892,1768078239443,-407.88214464,0.00026166,2]
[401254893,1768078239453,-830.67585374,0.00026198,2]
[401254894,1768078239462,-450.0,0.00026301,2]
[401254896,1768078239472,-500.0,0.00026302,2]
[401254898,1768078239481,-500.0,0.00026302,2]
[401254899,1768078239491,-489.65888898,0.00026439,2]
[401254900,1768078239501,-500.0,0.00026439,2]
[401254901,1768078239511,-290.0,0.00026473,2]
[401254902,1768078239521,-290.0,0.00026525,2]
[401254903,1768078239530,-1120.77897915,0.00026562,7]
[401254904,1768078239539,-290.0,0.00026562,7]
[401254905,1768078239549,-290.0,0.00026579,2]
[401254906,1768078239558,-290.0,0.00026601,2]
[401254911,1768078239671,-380.1,0.00026656,2]
[401254913,1768078239681,-360.45,0.000267,14]
[401254915,1768078239690,-151.0,0.000267,18]
[401254918,1768078239699,-312.48347739,0.00026766,2]
[401254921,1768078239708,-290.0,0.00026786,7]
[401254923,1768078239717,-290.0,0.00026809,2]
[401254925,1768078239726,-550.0,0.00026849,2]
[401254927,1768078239735,-290.0,0.00026852,7]
[401254929,1768078239744,-290.0,0.00026907,7]
[401254931,1768078239754,-290.0,0.00027056,2]
[401254933,1768078239762,-290.0,0.00027261,2]
[401254935,1768078239772,-290.0,0.00027289,2]
[401254937,1768078239781,-1000.0,0.00027307,30]
[401254939,1768078239794,-1000.0,0.00027307,30]
[401254941,1768078239803,-579.0,0.00027307,30]
[401254943,1768078239812,-450.0,0.00027397,5]
[401254945,1768078239828,-407.88214464,0.00027518,2]
[401254947,1768078239838,-290.0,0.00027538,7]
[401254949,1768078239847,-186.81316319,0.00027646,18]
[401254951,1768078239856,-293.0,0.00027646,2]
[401254954,1768078239867,-500.0,0.00027853,7]
[401254956,1768078239876,-291.0,0.00028018,7]
[401254958,1768078239885,-290.0,0.0002805,2]
[401254960,1768078239893,-231.35629748,0.00028198,5]
[401254962,1768078239902,-891.95522,0.00028198,2]
[401254964,1768078239911,-163.0,0.00028219,28]
[401254966,1768078239920,-290.0,0.00028258,2]
[401254968,1768078239929,-380.1,0.00028399,3]
[401254970,1768078239938,-290.0,0.00028445,2]
[401254972,1768078239947,-290.0,0.00028471,2]
[401254974,1768078239956,-290.0,0.00028608,2]
[401254975,1768078239965,-290.0,0.00028622,7]
[401254977,1768078239974,-291.0,0.00028706,2]
[401254979,1768078239983,-186.81316319,0.00028729,19]
[401254981,1768078239992,-290.0,0.00028732,2]
[401254983,1768078240002,-151.0,0.000288,11]
[401254985,1768078240011,-407.88214464,0.0002887,2]
[401254987,1768078240020,-290.0,0.00028943,2]
[401254990,1768078240029,-516.35781364,0.00029187,7]
[401254992,1768078240039,-5000.0,0.00029355,2]
[401254994,1768078240049,-10523.09,0.000294,2]
[401254996,1768078240059,-180.55664476,0.00029588,3]
[401254998,1768078240067,-186.81316319,0.00029812,21]
[401255000,1768078240076,-1000.0,0.00030038,30]
[401255002,1768078240084,-1000.0,0.00030038,30]
[401255004,1768078240093,-1000.0,0.00030038,30]
[401255006,1768078240101,-300.0,0.00030137,5]
[401255008,1768078240110,-1226.64,0.00030137,2]
[401255010,1768078240118,-380.1,0.00030141,4]
[401255012,1768078240128,-953.23458626,0.00030198,2]
[401255014,1768078240138,-407.88214464,0.00030222,2]
[401255016,1768078240147,-174.0,0.00030411,40]
[401255018,1768078240158,-258.38,0.00030637,2]
[401255019,1768078240167,-186.81316319,0.00030895,22]
[401255022,1768078240178,-151.0,0.000309,10]
[401255023,1768078240187,-407.88214464,0.00031573,2]
[401255026,1768078240198,-300.0,0.00031808,2]
[401255027,1768078240208,-300.0,0.00031808,2]
[401255029,1768078240219,-300.0,0.00031808,2]
[401255031,1768078240228,-300.0,0.00031808,2]
[401255033,1768078240237,-380.1,0.00031883,5]
[401255035,1768078240246,-186.81316319,0.00031979,23]
[401255037,1768078240255,-1014.51395252,0.00032198,2]
[401255039,1768078240263,-171.0,0.000324,120]
[401255041,1768078240273,-5000.0,0.00032605,2]
[401255043,1768078240284,-999.0,0.00032876,120]
[401255045,1768078240293,-256.65,0.00032877,10]
[401255047,1768078240303,-450.0,0.00032877,5]
[401255049,1768078240312,-360.45,0.000329,30]
[401255051,1768078240320,-407.88214464,0.00032925,2]
[401255053,1768078240331,-1000.0,0.00033041,30]
[401255055,1768078240340,-1000.0,0.00033041,30]
[401255057,1768078240350,-1000.0,0.00033041,30]
[401255059,1768078240359,-715.0,0.00033041,30]
[401255061,1768078240368,-186.81316319,0.00033062,25]
[401255063,1768078240377,-380.1,0.00033625,6]
[401255064,1768078240386,-170.0,0.00033699,63]
[401255066,1768078240395,-210.0,0.00033699,5]
[401255068,1768078240404,-30000.0,0.00033969,2]
[401255070,1768078240413,-151.0,0.00033969,2]
[401255072,1768078240422,-151.0,0.00033969,2]
[401255074,1768078240432,-151.0,0.00033969,2]
[401255076,1768078240441,-151.0,0.00033969,2]
[401255078,1768078240451,-151.0,0.00033969,2]
[401255080,1768078240460,-151.0,0.00033969,2]
[401255082,1768078240470,-151.0,0.00033969,2]
[401255084,1768078240479,-151.0,0.00033969,2]
[401255086,1768078240488,-151.0,0.00033969,2]
[401255088,1768078240497,-151.0,0.00033969,2]
[401255090,1768078240506,-151.0,0.00033969,2]
[401255092,1768078240515,-151.0,0.00033969,2]
[401255094,1768078240525,-151.0,0.00033969,2]
[401255096,1768078240534,-151.0,0.00033969,2]
[401255098,1768078240543,-151.0,0.00033969,2]
[401255100,1768078240552,-151.0,0.00033969,2]
[401255102,1768078240562,-151.0,0.00033969,2]
[401255104,1768078240571,-151.0,0.00033969,2]
[401255106,1768078240580,-151.0,0.00033969,2]
[401255108,1768078240590,-151.0,0.00033969,2]
[401255110,1768078240599,-999.0,0.00033972,120]
[401255112,1768078240608,-186.81316319,0.00034145,26]
[401255114,1768078240617,-1075.79331878,0.00034198,120]
[401255116,1768078240626,-407.88214464,0.00034277,2]
[401255118,1768078240636,-385.82,0.0003435,60]
[401255120,1768078240645,-385.82,0.0003445,60]
[401255122,1768078240654,-162.26,0.000345,2]
[401255124,1768078240663,-5055.88306003,0.00034517,2]
[401255126,1768078240672,-270.0,0.00034521,5]
[401255128,1768078240682,-385.82,0.0003455,60]
[401255130,1768078240692,-385.82,0.0003465,60]
[401255132,1768078240701,-385.82,0.0003475,60]
[401255134,1768078240710,-10523.09,0.000348,14]
[401255136,1768078240720,-385.82,0.0003485,60]
[401255137,1768078240729,-385.82,0.0003495,60]
[401255139,1768078240738,-5000.0,0.00035,10]
[401255141,1768078240747,-510.0,0.00035005,30]
[401255143,1768078240756,-324.5,0.00035005,30]
[401255145,1768078240765,-385.82,0.0003505,60]
[401255147,1768078240775,-999.0,0.00035068,120]
[401255149,1768078240784,-373.09,0.00035074,41]
[401255151,1768078240792,-5058.79910613,0.00035132,48]
[401255153,1768078240801,-385.82,0.0003515,60]
[401255155,1768078240810,-186.81316319,0.00035229,28]
[401255157,1768078240819,-385.82,0.0003525,60]
[401255159,1768078240827,-330.0,0.00035342,5]
[401255161,1768078240836,-385.82,0.0003535,60]
[401255163,1768078240844,-380.1,0.00035368,6]
[401255165,1768078240853,-385.82,0.0003545,60]
[401255167,1768078240862,-385.82,0.0003555,60]
[401255169,1768078240871,-500.0,0.00035616,30]
[401255171,1768078240880,-334.34878739,0.00035616,7]
[401255173,1768078240889,-750.0,0.00035616,5]
[401255175,1768078240898,-407.88214464,0.00035629,2]
[401255177,1768078240907,-385.82,0.0003565,60]
[401255179,1768078240916,-385.82,0.0003575,60]
[401255180,1768078240925,-385.82,0.0003585,60]
[401255182,1768078240934,-5000.0,0.00035855,3]
[401255184,1768078240943,-557939.03112376,0.00035937,4]
[401255186,1768078240952,-385.82,0.0003595,60]
[401255188,1768078240962,-1041.66666667,0.00036,30]
[401255190,1768078240972,-385.82,0.0003605,60]
[401255192,1768078240981,-377.1655679,0.00036137,30]
[401255194,1768078240991,-377.1655679,0.00036137,30]
[401255196,1768078241000,-376.6134449,0.00036137,30]
[401255198,1768078241010,-385.82,0.0003615,60]
[401255200,1768078241019,-999.0,0.00036164,120]
[401255202,1768078241029,-500.0,0.00036164,30]
[401255204,1768078241038,-180.020001,0.00036164,5]
[401255206,1768078241048,-1137.07268504,0.00036198,120]
[401255208,1768078241059,-385.82,0.0003625,60]
[401255210,1768078241068,-186.81316319,0.00036312,29]
[401255212,1768078241078,-1000.0,0.00036345,30]
[401255214,1768078241088,-1000.0,0.00036345,30]
[401255216,1768078241097,-1000.0,0.00036345,30]
[401255218,1768078241107,-385.82,0.0003635,60]
[401255220,1768078241116,-385.82,0.0003645,60]
[401255222,1768078241126,-385.82,0.0003655,60]
[401255224,1768078241139,-385.82,0.0003665,60]
[401255226,1768078241155,-500.0,0.00036712,30]
[401255228,1768078241167,-500.0,0.00036712,30]
[401255230,1768078241175,-500.0,0.00036712,30]
[401255231,1768078241185,-500.0,0.00036712,30]
[401255233,1768078241195,-500.17912256,0.00036712,30]
[401255235,1768078241206,-500.0,0.00036712,2]
[401255237,1768078241216,-2479.36,0.00036712,30]
[401255239,1768078241226,-2479.36,0.00036712,30]
[401255241,1768078241235,-2479.36,0.00036712,30]
[401255243,1768078241244,-2479.36,0.00036712,30]
[401255245,1768078241254,-2479.36,0.00036712,30]
[401255247,1768078241264,-2479.36,0.00036712,30]
[401255249,1768078241273,-2479.36,0.00036712,30]
[401255251,1768078241282,-2479.36,0.00036712,30]
[401255253,1768078241291,-2479.36,0.00036712,30]
[401255255,1768078241301,-2479.36,0.00036712,30]
[401255257,1768078241310,-2479.36,0.00036712,30]
[401255259,1768078241320,-2479.36,0.00036712,30]
[401255261,1768078241330,-2479.36,0.00036712,30]
[401255263,1768078241339,-2479.36,0.00036712,30]
[401255265,1768078241351,-2479.36,0.00036712,30]
[401255267,1768078241360,-2479.36,0.00036712,30]
[401255269,1768078241368,-2479.36,0.00036712,30]
[401255271,1768078241377,-2479.36,0.00036712,30]
[401255273,1768078241386,-2479.36,0.00036712,30]
[401255274,1768078241395,-2479.36,0.00036712,30]
[401255276,1768078241404,-2479.36,0.00036712,30]
[401255278,1768078241413,-2479.36,0.00036712,30]
[401255280,1768078241422,-2479.36,0.00036712,30]
[401255282,1768078241431,-2479.42,0.00036712,30]
[401255284,1768078241442,-4887.27,0.00036712,30]
[401255286,1768078241451,-4887.27,0.00036712,30]
[401255288,1768078241460,-4887.27,0.00036712,30]
[401255290,1768078241470,-4887.27,0.00036712,30]
[401255292,1768078241479,-4887.27,0.00036712,30]
[401255294,1768078241488,-4887.27,0.00036712,30]
[401255296,1768078241497,-4887.27,0.00036712,30]
[401255298,1768078241506,-4887.27,0.00036712,30]
[401255300,1768078241515,-4887.27,0.00036712,30]
[401255302,1768078241524,-4887.27,0.00036712,30]
[401255304,1768078241533,-4887.27,0.00036712,30]
[401255306,1768078241544,-4887.27,0.00036712,30]
[401255308,1768078241553,-4887.27,0.00036712,30]
[401255310,1768078241562,-4887.27,0.00036712,30]
[401255312,1768078241571,-4887.27,0.00036712,30]
[401255314,1768078241580,-4887.27,0.00036712,30]
[401255316,1768078241590,-4887.27,0.00036712,30]
[401255318,1768078241599,-4887.27,0.00036712,30]
[401255319,1768078241609,-4887.27,0.00036712,30]
[401255321,1768078241620,-4887.27,0.00036712,30]
[401255323,1768078241629,-4887.27,0.00036712,30]
[401255325,1768078241639,-4887.27,0.00036712,30]
[401255328,1768078241648,-4887.27,0.00036712,30]
[401255329,1768078241658,-4887.3,0.00036712,30]
[401255332,1768078241667,-16189.62,0.00036712,30]
[401255333,1768078241676,-16189.62,0.00036712,30]
[401255335,1768078241685,-16189.62,0.00036712,30]
[401255337,1768078241694,-16189.62,0.00036712,30]
[401255339,1768078241703,-16189.62,0.00036712,30]
[401255341,1768078241713,-16189.62,0.00036712,30]
[401255343,1768078241723,-16189.62,0.00036712,30]
[401255345,1768078241732,-16189.62,0.00036712,30]
[401255347,1768078241741,-16189.62,0.00036712,30]
[401255349,1768078241751,-16189.62,0.00036712,30]
[401255351,1768078241760,-16189.62,0.00036712,30]
[401255353,1768078241770,-16189.62,0.00036712,30]
[401255355,1768078241779,-16189.62,0.00036712,30]
[401255357,1768078241793,-16189.62,0.00036712,30]
[401255359,1768078241803,-16189.62,0.00036712,30]
[401255361,1768078241812,-16189.62,0.00036712,30]
[401255363,1768078241822,-16189.62,0.00036712,30]
[401255365,1768078241832,-16189.62,0.00036712,30]
[401255367,1768078241841,-16189.62,0.00036712,30]
[401255369,1768078241850,-16189.62,0.00036712,30]
[401255371,1768078241860,-16189.62,0.00036712,30]
[401255373,1768078241870,-16189.62,0.00036712,30]
[401255374,1768078241879,-16189.62,0.00036712,30]
[401255376,1768078241888,-16189.70100427,0.00036712,30]
[401255378,1768078241897,-241.15003758,0.00036712,120]
[401255380,1768078241907,-26257.46,0.00036712,30]
[401255382,1768078241916,-26257.46,0.00036712,30]
[401255384,1768078241925,-2192.87,0.00036712,30]
[401255386,1768078241934,-26257.46,0.00036712,30]
[401255388,1768078241944,-2192.87,0.00036712,30]
[401255390,1768078241953,-26257.46,0.00036712,30]
[401255392,1768078241963,-2192.87,0.00036712,30]
[401255394,1768078241972,-26257.46,0.00036712,30]
[401255396,1768078241981,-2192.87,0.00036712,30]
[401255397,1768078241990,-26257.46,0.00036712,30]
[401255399,1768078241999,-2192.87,0.00036712,30]
[401255401,1768078242008,-26257.46,0.00036712,30]
[401255403,1768078242017,-2192.87,0.00036712,30]
[401255405,1768078242026,-26257.46,0.00036712,30]
[401255407,1768078242035,-2192.87,0.00036712,30]
[401255409,1768078242045,-26257.46,0.00036712,30]
[401255411,1768078242054,-26257.46,0.00036712,30]
[401255413,1768078242063,-2192.87,0.00036712,30]
[401255415,1768078242072,-2192.87,0.00036712,30]
[401255417,1768078242081,-26257.46,0.00036712,30]
[401255419,1768078242090,-2192.87,0.00036712,30]
[401255421,1768078242099,-26257.46,0.00036712,30]
[401255423,1768078242109,-2192.87,0.00036712,30]
[401255425,1768078242118,-26257.46,0.00036712,30]
[401255427,1768078242128,-2192.87,0.00036712,30]
[401255429,1768078242137,-26257.46,0.00036712,30]
[401255431,1768078242146,-2192.87,0.00036712,30]
[401255433,1768078242155,-26257.46,0.00036712,30]
[401255435,1768078242165,-2192.87,0.00036712,30]
[401255437,1768078242174,-26257.46,0.00036712,30]
[401255439,1768078242183,-2192.87,0.00036712,30]
[401255441,1768078242193,-26257.46,0.00036712,30]
[401255443,1768078242201,-2192.87,0.00036712,30]
[401255444,1768078242210,-26257.46,0.00036712,30]
[401255446,1768078242219,-2192.87,0.00036712,30]
[401255449,1768078242228,-26257.46,0.00036712,30]
[401255466,1768078242332,-2192.87,0.00036712,30]
[401255468,1768078242343,-26257.46,0.00036712,30]
[401255470,1768078242352,-2192.87,0.00036712,30]
[401255472,1768078242362,-26257.46,0.00036712,30]
[401255474,1768078242371,-2192.87,0.00036712,30]
[401255476,1768078242380,-2192.87,0.00036712,30]
[401255478,1768078242389,-2195.79,0.00036712,30]
[401255480,1768078242399,-2192.87,0.00036712,30]
[401255482,1768078242408,-2195.79,0.00036712,30]
[401255484,1768078242418,-2192.87,0.00036712,30]
[401255486,1768078242428,-2195.79,0.00036712,30]
[401255488,1768078242436,-26257.46,0.00036712,30]
[401255490,1768078242446,-2192.89,0.00036712,30]
[401255492,1768078242455,-2195.79,0.00036712,30]
[401255494,1768078242464,-26257.46,0.00036712,30]
[401255495,1768078242473,-2195.79,0.00036712,30]
[401255497,1768078242483,-26257.54452659,0.00036712,30]
[401255499,1768078242492,-2195.79,0.00036712,30]
[401255501,1768078242501,-2195.79,0.00036712,30]
[401255503,1768078242511,-2195.79,0.00036712,30]
[401255505,1768078242520,-2195.79,0.00036712,30]
[401255507,1768078242529,-2195.79,0.00036712,30]
[401255509,1768078242538,-2195.79,0.00036712,30]
[401255511,1768078242547,-2195.79,0.00036712,30]
[401255513,1768078242556,-2195.79,0.00036712,30]
[401255515,1768078242564,-2195.79,0.00036712,30]
[401255517,1768078242573,-2195.79,0.00036712,30]
[401255519,1768078242583,-2195.79,0.00036712,30]
[401255521,1768078242592,-2195.79,0.00036712,30]
[401255523,1768078242601,-2195.79,0.00036712,30]
[401255525,1768078242610,-2195.79,0.00036712,30]
[401255527,1768078242619,-2195.79,0.00036712,30]
[401255529,1768078242628,-2195.79,0.00036712,30]
[401255531,1768078242637,-2195.79,0.00036712,30]
[401255533,1768078242646,-2195.79,0.00036712,30]
[401255535,1768078242655,-2195.88,0.00036712,30]
[401255537,1768078242665,-5048.48,0.00036712,30]
[401255539,1768078242672,-5048.48,0.00036712,30]
[401255541,1768078242681,-5048.48,0.00036712,30]
[401255542,1768078242690,-5048.48,0.00036712,30]
[401255544,1768078242699,-5048.48,0.00036712,30]
[401255546,1768078242708,-5048.48,0.00036712,30]
[401255548,1768078242718,-5048.48,0.00036712,30]
[401255550,1768078242728,-5048.48,0.00036712,30]
[401255552,1768078242737,-5048.48,0.00036712,30]
[401255554,1768078242746,-5048.48,0.00036712,30]
[401255556,1768078242755,-5048.48,0.00036712,30]
[401255558,1768078242764,-5048.48,0.00036712,30]
[401255560,1768078242773,-5048.48,0.00036712,30]
[401255562,1768078242783,-5048.48,0.00036712,30]
[401255564,1768078242792,-5048.48,0.00036712,30]
[401255566,1768078242801,-5048.48,0.00036712,30]
[401255568,1768078242810,-5048.48,0.00036712,30]
[401255570,1768078242819,-5048.48,0.00036712,30]
[401255572,1768078242828,-5048.48,0.00036712,30]
[401255574,1768078242838,-5048.48,0.00036712,30]
[401255575,1768078242847,-5048.48,0.00036712,30]
[401255577,1768078242857,-5048.48,0.00036712,30]
[401255579,1768078242866,-5048.48,0.00036712,30]
[401255581,1768078242875,-5048.65,0.00036712,30]
[401255583,1768078242885,-500.0,0.00036712,2]
[401255585,1768078242894,-500.0,0.00036712,2]
[401255587,1768078242904,-500.0,0.00036712,2]
[401255589,1768078242913,-500.0,0.00036712,2]
[401255591,1768078242922,-500.0,0.00036712,2]
[401255593,1768078242932,-500.0,0.00036712,2]
[401255595,1768078242941,-500.0,0.00036712,2]
[401255597,1768078242950,-500.0,0.00036712,2]
[401255599,1768078242959,-500.0,0.00036712,2]
[401255601,1768078242969,-500.0,0.00036712,2]
[401255603,1768078242977,-500.0,0.00036712,2]
[401255605,1768078242987,-500.0,0.00036712,2]
[401255607,1768078242996,-500.0,0.00036712,2]
[401255609,1768078243006,-500.0,0.00036712,2]
[401255611,1768078243015,-500.0,0.00036712,2]
[401255613,1768078243024,-500.0,0.00036712,2]
[401255615,1768078243034,-502.32745149,0.00036712,2]
[401255617,1768078243043,-532.55,0.00036712,30]
[401255619,1768078243052,-800.0,0.00036719,7]
[401255621,1768078243062,-385.82,0.0003675,60]
[401255623,1768078243071,-258.37953721,0.00036762,2]
[401255625,1768078243079,-95986.0676826,0.00036774,16]
[401255627,1768078243088,-151.0,0.00036774,31]
[401255629,1768078243096,-151.0,0.00036774,31]
[401255630,1768078243107,-151.0,0.00036774,31]
[401255632,1768078243117,-151.0,0.00036774,31]
[401255634,1768078243127,-479.331389,0.00036774,31]
[401255636,1768078243136,-479.331389,0.00036774,31]
[401255638,1768078243145,-479.331389,0.00036774,31]
[401255640,1768078243155,-479.331389,0.00036774,31]
[401255643,1768078243165,-385.82,0.0003685,60]
[401255645,1768078243175,-10523.09,0.000369,14]
[401255647,1768078243184,-163.471192,0.000369,31]
[401255649,1768078243192,-151.0,0.000369,31]
[401255651,1768078243202,-385.82,0.0003695,60]
[401255653,1768078243211,-407.88214464,0.00036981,2]
[401255655,1768078243221,-844.8127657,0.00036984,2]
[401255657,1768078243230,-10000.0,0.00036991,2]
[401255659,1768078243239,-385.82,0.0003705,60]
[401255661,1768078243249,-1207.6669348,0.00037058,2]
[401255663,1768078243258,-4425.0300407,0.00037058,2]
[401255664,1768078243267,-157.421281,0.00037074,31]
[401255666,1768078243276,-151.0,0.00037074,31]
[401255668,1768078243285,-151.0,0.00037074,31]
[401255670,1768078243294,-151.0,0.00037074,31]
[401255672,1768078243303,-151.0,0.00037074,31]
[401255674,1768078243313,-151.0,0.00037074,31]
[401255676,1768078243322,-151.0,0.00037074,31]
[401255678,1768078243331,-151.0,0.00037074,31]
[401255680,1768078243340,-151.0,0.00037074,31]
[401255682,1768078243349,-151.0,0.00037074,31]
[401255684,1768078243358,-242.550437,0.00037074,31]
[401255686,1768078243367,-151.0,0.00037081,31]
[401255688,1768078243375,-277.124706,0.00037081,31]
[401255690,1768078243384,-479.331389,0.00037084,31]
[401255692,1768078243394,-479.331389,0.00037084,31]
[401255693,1768078243404,-479.331389,0.00037084,31]
[401255695,1768078243413,-479.331389,0.00037084,31]
[401255697,1768078243423,-479.331389,0.00037084,31]
[401255699,1768078243432,-479.331389,0.00037084,31]
[401255702,1768078243441,-479.331389,0.00037084,31]
[401255704,1768078243451,-479.331389,0.00037084,31]
[401255705,1768078243460,-479.331389,0.00037084,31]
[401255707,1768078243471,-479.331389,0.00037084,31]
[401255710,1768078243480,-479.331389,0.00037084,31]
[401255711,1768078243490,-479.331389,0.00037084,31]
[401255713,1768078243499,-479.331389,0.00037084,31]
[401255715,1768078243508,-479.331389,0.00037084,31]
[401255717,1768078243518,-479.331389,0.00037084,31]
[401255719,1768078243527,-479.33138,0.00037084,31]
[401255721,1768078243536,-151.895159,0.00037084,31]
[401255723,1768078243545,-151.895159,0.00037084,31]
[401255725,1768078243552,-151.895159,0.00037084,31]
[401255726,1768078243561,-151.895159,0.00037084,31]
[401255728,1768078243571,-151.895159,0.00037084,31]
[401255730,1768078243579,-151.895159,0.00037084,31]
[401255732,1768078243588,-151.895159,0.00037084,31]
[401255733,1768078243598,-151.895159,0.00037084,31]
[401255734,1768078243607,-151.895159,0.00037084,31]
[401255735,1768078243616,-151.895159,0.00037084,31]
[401255736,1768078243625,-151.895159,0.00037084,31]
[401255737,1768078243633,-151.895159,0.00037084,31]
[401255738,1768078243642,-151.895159,0.00037084,31]
[401255739,1768078243651,-151.895159,0.00037084,31]
[401255740,1768078243659,-151.895159,0.00037084,31]
[401255741,1768078243668,-151.895159,0.00037084,31]
[401255742,1768078243677,-151.895159,0.00037084,31]
[401255743,1768078243686,-151.895159,0.00037084,31]
[401255744,1768078243695,-151.895159,0.00037084,31]
[401255745,1768078243704,-151.895151,0.00037084,31]
[401255746,1768078243713,-151.366366,0.00037084,2]
[401255747,1768078243724,-151.0,0.00037084,31]
[401255748,1768078243733,-151.0,0.00037084,31]
[401255749,1768078243742,-151.0,0.00037084,31]
[401255750,1768078243751,-211.591357,0.00037084,31]
[401255751,1768078243760,-151.0,0.00037084,31]
[401255752,1768078243769,-151.0,0.00037084,31]
[401255753,1768078243778,-151.0,0.00037084,31]